[Event "December 12 Early 2023"]
[Site "https://www.chess.com"]
[Date "2023.12.12"]
[Round "6"]
[White "Indjic, Aleksandar"]
[Black "Shuvalova, Polina"]
[Result "1-0"]
[Board "19"]
[TimeControl "180+1"]
[WhiteFideId "911925"]
[BlackFideId "24171760"]
[WhiteElo "2909"]
[BlackElo "2777"]
[WhiteTeam "SRB"]
[BlackTeam "RUS"]
[WhiteClock "0:00:20"]
[BlackClock "0:00:10"]

1. d4 {[%clk 0:03:00]}  Nf6 {[%clk 0:02:57]} 2. c4 {[%clk 0:02:56]}  e6 {[%clk 0:02:57]} 3. Nc3 {[%clk 0:02:57]}  d5 {[%clk 0:02:57]} 4. Nf3 {[%clk 0:02:56]}  c5 {[%clk 0:02:57]} 5. cxd5 {[%clk 0:02:55]}  Nxd5 {[%clk 0:02:58]} 6. e4 {[%clk 0:02:54]}  Nxc3 {[%clk 0:02:56]} 7. bxc3 {[%clk 0:02:55]}  cxd4 {[%clk 0:02:56]} 8. cxd4 {[%clk 0:02:55]}  Bb4+ {[%clk 0:02:57]} 9. Bd2 {[%clk 0:02:56]}  Bxd2+ {[%clk 0:02:57]} 10. Qxd2 {[%clk 0:02:57]}  O-O {[%clk 0:02:58]} 11. Bc4 {[%clk 0:02:57]}  Nd7 {[%clk 0:02:58]} 12. O-O {[%clk 0:02:57]}  b6 {[%clk 0:02:58]} 13. Rfe1 {[%clk 0:02:58]}  Bb7 {[%clk 0:02:58]} 14. Rad1 {[%clk 0:02:58]}  Nf6 {[%clk 0:02:59]} 15. Bd3 {[%clk 0:02:53]}  Rc8 {[%clk 0:02:57]} 16. Qf4 {[%clk 0:02:52]}  Qc7 {[%clk 0:02:53]} 17. Qh4 {[%clk 0:02:50]}  h6 {[%clk 0:02:53]} 18. Bb1 {[%clk 0:02:45]}  Rfd8 {[%clk 0:02:51]} 19. h3 {[%clk 0:02:31]}  b5 {[%clk 0:02:49]} 20. Re3 {[%clk 0:01:58]}  a5 {[%clk 0:02:34]} 21. Nh2 {[%clk 0:01:47]}  Rxd4 {[%clk 0:02:14]} 22. Rxd4 {[%clk 0:01:33]}  Qc1+ {[%clk 0:02:14]} 23. Nf1 {[%clk 0:01:33]}  Qxb1 {[%clk 0:02:14]} 24. f3 {[%clk 0:01:28]}  b4 {[%clk 0:02:10]} 25. Re1 {[%clk 0:01:25]}  Qxa2 {[%clk 0:02:08]} 26. Rd6 {[%clk 0:01:13]}  b3 {[%clk 0:02:01]} 27. Rb6 {[%clk 0:01:12]}  Bc6 {[%clk 0:01:59]} 28. Qf2 {[%clk 0:00:49]}  Qxf2+ {[%clk 0:01:31]} 29. Kxf2 {[%clk 0:00:50]}  a4 {[%clk 0:01:32]} 30. Rc1 {[%clk 0:00:49]}  Ra8 {[%clk 0:00:42]} 31. Rcxc6 {[%clk 0:00:45]}  a3 {[%clk 0:00:26]} 32. Ra6 {[%clk 0:00:40]}  Rb8 {[%clk 0:00:24]} 33. Nd2 {[%clk 0:00:30]}  b2 {[%clk 0:00:20]} 34. Nb1 {[%clk 0:00:24]}  Nh5 {[%clk 0:00:12]} 35. Rxa3 {[%clk 0:00:21]}  Nf4 {[%clk 0:00:12]} 36. Rc2 {[%clk 0:00:21]}  e5 {[%clk 0:00:12]} 37. g3 {[%clk 0:00:21]}  Ne6 {[%clk 0:00:12]} 38. Ra2 {[%clk 0:00:21]}  Nd4 {[%clk 0:00:12]} 39. Rcxb2 {[%clk 0:00:21]}  Rc8 {[%clk 0:00:13]} 40. Ra3 {[%clk 0:00:20]}  g5 {[%clk 0:00:12]} 41. Rc3 {[%clk 0:00:19]}  Ra8 {[%clk 0:00:13]} 42. Nd2 {[%clk 0:00:19]}  Ra1 {[%clk 0:00:11]} 43. Nf1 {[%clk 0:00:19]}  Kg7 {[%clk 0:00:11]} 44. Ne3 {[%clk 0:00:19]}  Rh1 {[%clk 0:00:11]} 45. Kg2 {[%clk 0:00:19]}  Re1 {[%clk 0:00:11]} 46. Nf5+ {[%clk 0:00:20]}  Nxf5 {[%clk 0:00:11]} 47. exf5 {[%clk 0:00:21]}  Kf6 {[%clk 0:00:12]} 48. g4 {[%clk 0:00:21]}  e4 {[%clk 0:00:11]} 49. fxe4 {[%clk 0:00:22]}  Ke5 {[%clk 0:00:11]} 50. Kf2 {[%clk 0:00:21]}  Rg1 {[%clk 0:00:10]} 51. Kxg1 {[%clk 0:00:20]} 1-0

[Event "December 12 Early 2023"]
[Site "https://www.chess.com"]
[Date "2023.12.12"]
[Round "6"]
[White "Weetik, Vjacheslav"]
[Black "Galchenko, Matvey"]
[Result "1-0"]
[Board "23"]
[TimeControl "180+1"]
[WhiteFideId "4153472"]
[BlackFideId "24175480"]
[WhiteElo "2755"]
[BlackElo "2892"]
[WhiteTeam "RUS"]
[BlackTeam "FID"]
[WhiteClock "0:00:23"]
[BlackClock "0:00:01"]

1. e4 {[%clk 0:02:59]}  e6 {[%clk 0:02:58]} 2. d4 {[%clk 0:03:00]}  d5 {[%clk 0:02:59]} 3. exd5 {[%clk 0:03:00]}  exd5 {[%clk 0:03:00]} 4. Nf3 {[%clk 0:03:01]}  Nf6 {[%clk 0:02:56]} 5. Bd3 {[%clk 0:03:01]}  c5 {[%clk 0:02:56]} 6. c3 {[%clk 0:03:00]}  Bd6 {[%clk 0:02:56]} 7. dxc5 {[%clk 0:03:00]}  Bxc5 {[%clk 0:02:57]} 8. O-O {[%clk 0:03:00]}  O-O {[%clk 0:02:57]} 9. Nbd2 {[%clk 0:03:00]}  Nc6 {[%clk 0:02:55]} 10. Nb3 {[%clk 0:02:59]}  Bb6 {[%clk 0:02:55]} 11. Bg5 {[%clk 0:02:59]}  h6 {[%clk 0:02:56]} 12. Bh4 {[%clk 0:02:59]}  g5 {[%clk 0:02:56]} 13. Nxg5 {[%clk 0:02:40]}  hxg5 {[%clk 0:02:57]} 14. Bxg5 {[%clk 0:02:41]}  Kg7 {[%clk 0:02:47]} 15. Qf3 {[%clk 0:02:20]}  Bc7 {[%clk 0:02:04]} 16. Rfe1 {[%clk 0:01:32]}  Rh8 {[%clk 0:01:56]} 17. h4 {[%clk 0:01:16]}  Qd6 {[%clk 0:01:34]} 18. g3 {[%clk 0:01:13]}  Ne5 {[%clk 0:01:16]} 19. Rxe5 {[%clk 0:01:12]}  Qxe5 {[%clk 0:01:16]} 20. Bf4 {[%clk 0:00:49]}  Qe7 {[%clk 0:01:11]} 21. Bg5 {[%clk 0:00:45]}  Qd6 {[%clk 0:00:49]} 22. Bf4 {[%clk 0:00:33]}  Qe7 {[%clk 0:00:13]} 23. Bg5 {[%clk 0:00:33]}  Bd7 {[%clk 0:00:12]} 24. Nd4 {[%clk 0:00:34]}  Rae8 {[%clk 0:00:09]} 25. Bf5 {[%clk 0:00:31]}  Be5 {[%clk 0:00:07]} 26. Re1 {[%clk 0:00:31]}  Qd6 {[%clk 0:00:06]} 27. Bxd7 {[%clk 0:00:29]}  Bxd4 {[%clk 0:00:05]} 28. Bxe8 {[%clk 0:00:30]}  Nxe8 {[%clk 0:00:04]} 29. cxd4 {[%clk 0:00:29]}  Qb6 {[%clk 0:00:04]} 30. Qxd5 {[%clk 0:00:25]}  Rg8 {[%clk 0:00:03]} 31. Re7 {[%clk 0:00:24]}  Rf8 {[%clk 0:00:03]} 32. Qe5+ {[%clk 0:00:23]}  Kg8 {[%clk 0:00:01]} 33. Rxe8 {[%clk 0:00:23]} 1-0

[Event "December 12 Early 2023"]
[Site "https://www.chess.com"]
[Date "2023.12.12"]
[Round "6"]
[White "Bacrot, Etienne"]
[Black "Matinian, Nikita"]
[Result "0-1"]
[Board "25"]
[TimeControl "180+1"]
[WhiteFideId "605506"]
[BlackFideId "24129100"]
[WhiteElo "2862"]
[BlackElo "2747"]
[WhiteTeam "FRA"]
[BlackTeam "FID"]
[WhiteClock "0:00:19"]
[BlackClock "0:01:24"]

1. e4 {[%clk 0:02:58]}  c5 {[%clk 0:03:00]} 2. Nf3 {[%clk 0:02:55]}  d6 {[%clk 0:03:00]} 3. Bb5+ {[%clk 0:02:54]}  Nd7 {[%clk 0:03:00]} 4. O-O {[%clk 0:02:54]}  a6 {[%clk 0:02:58]} 5. Bd3 {[%clk 0:02:52]}  g6 {[%clk 0:02:58]} 6. Re1 {[%clk 0:02:50]}  Bg7 {[%clk 0:02:58]} 7. c3 {[%clk 0:02:50]}  Ngf6 {[%clk 0:02:54]} 8. Bc2 {[%clk 0:02:48]}  Ne5 {[%clk 0:02:53]} 9. d4 {[%clk 0:02:39]}  Nxf3+ {[%clk 0:02:52]} 10. Qxf3 {[%clk 0:02:39]}  cxd4 {[%clk 0:02:51]} 11. cxd4 {[%clk 0:02:39]}  Nd7 {[%clk 0:02:52]} 12. Be3 {[%clk 0:02:33]}  e5 {[%clk 0:02:40]} 13. Qd1 {[%clk 0:02:24]}  exd4 {[%clk 0:02:25]} 14. Bxd4 {[%clk 0:02:24]}  Bxd4 {[%clk 0:02:26]} 15. Qxd4 {[%clk 0:02:24]}  Qf6 {[%clk 0:02:26]} 16. Qxf6 {[%clk 0:02:17]}  Nxf6 {[%clk 0:02:27]} 17. Nc3 {[%clk 0:02:17]}  Be6 {[%clk 0:02:27]} 18. Rad1 {[%clk 0:02:16]}  Ke7 {[%clk 0:02:20]} 19. f4 {[%clk 0:02:11]}  Rhc8 {[%clk 0:02:17]} 20. f5 {[%clk 0:01:55]}  Bxa2 {[%clk 0:02:10]} 21. e5 {[%clk 0:01:49]}  dxe5 {[%clk 0:02:11]} 22. Rxe5+ {[%clk 0:01:49]}  Kf8 {[%clk 0:02:10]} 23. fxg6 {[%clk 0:01:46]}  hxg6 {[%clk 0:02:08]} 24. Rf1 {[%clk 0:01:24]}  Kg7 {[%clk 0:02:02]} 25. Bf5 {[%clk 0:01:01]}  Rxc3 {[%clk 0:01:51]} 26. bxc3 {[%clk 0:01:01]}  gxf5 {[%clk 0:01:51]} 27. Rexf5 {[%clk 0:01:01]}  Ne4 {[%clk 0:01:44]} 28. Ra1 {[%clk 0:00:53]}  Be6 {[%clk 0:01:38]} 29. Rf3 {[%clk 0:00:51]}  a5 {[%clk 0:01:37]} 30. Re3 {[%clk 0:00:45]}  Nc5 {[%clk 0:01:35]} 31. Rg3+ {[%clk 0:00:43]}  Kf8 {[%clk 0:01:34]} 32. h4 {[%clk 0:00:37]}  a4 {[%clk 0:01:32]} 33. Ra3 {[%clk 0:00:35]}  Ke7 {[%clk 0:01:28]} 34. Rg5 {[%clk 0:00:31]}  b6 {[%clk 0:01:28]} 35. h5 {[%clk 0:00:30]}  Kf6 {[%clk 0:01:27]} 36. Rg3 {[%clk 0:00:22]}  Rh8 {[%clk 0:01:26]} 37. Rf3+ {[%clk 0:00:19]}  Ke7 {[%clk 0:01:24]} 0-1

[Event "December 12 Early 2023"]
[Site "https://www.chess.com"]
[Date "2023.12.12"]
[Round "6"]
[White "Xu, Yi"]
[Black "Arslanov, Shamil"]
[Result "1-0"]
[Board "26"]
[TimeControl "180+1"]
[WhiteFideId "8605564"]
[BlackFideId "4192826"]
[WhiteElo "2859"]
[BlackElo "2735"]
[WhiteTeam "CHN"]
[BlackTeam "RUS"]
[WhiteClock "0:00:13"]
[BlackClock "0:00:03"]

1. e4 {[%clk 0:02:59]}  d6 {[%clk 0:03:00]} 2. d4 {[%clk 0:02:58]}  e5 {[%clk 0:03:00]} 3. Nf3 {[%clk 0:02:58]}  Bg4 {[%clk 0:03:01]} 4. dxe5 {[%clk 0:02:56]}  Nc6 {[%clk 0:03:01]} 5. Bb5 {[%clk 0:02:44]}  dxe5 {[%clk 0:02:53]} 6. Qxd8+ {[%clk 0:02:32]}  Rxd8 {[%clk 0:02:52]} 7. Bxc6+ {[%clk 0:02:28]}  bxc6 {[%clk 0:02:52]} 8. Nbd2 {[%clk 0:02:29]}  f6 {[%clk 0:02:47]} 9. h3 {[%clk 0:02:26]}  Be6 {[%clk 0:02:46]} 10. Nb3 {[%clk 0:02:27]}  a5 {[%clk 0:02:16]} 11. Be3 {[%clk 0:02:25]}  Rb8 {[%clk 0:01:22]} 12. O-O-O {[%clk 0:01:53]}  a4 {[%clk 0:01:22]} 13. Nc5 {[%clk 0:01:52]}  Bxc5 {[%clk 0:01:04]} 14. Bxc5 {[%clk 0:01:53]}  Bxa2 {[%clk 0:01:05]} 15. Rd3 {[%clk 0:01:49]}  Bc4 {[%clk 0:01:02]} 16. Ra3 {[%clk 0:01:47]}  Bb5 {[%clk 0:00:25]} 17. Nd2 {[%clk 0:01:46]}  Ne7 {[%clk 0:00:21]} 18. c4 {[%clk 0:01:41]}  Ba6 {[%clk 0:00:21]} 19. Rxa4 {[%clk 0:01:41]}  Bc8 {[%clk 0:00:22]} 20. Ra7 {[%clk 0:01:37]}  Rb7 {[%clk 0:00:19]} 21. Ra8 {[%clk 0:01:25]}  Kf7 {[%clk 0:00:18]} 22. Kc2 {[%clk 0:01:21]}  Ng6 {[%clk 0:00:16]} 23. g3 {[%clk 0:01:20]}  Be6 {[%clk 0:00:16]} 24. Rxh8 {[%clk 0:01:14]}  Nxh8 {[%clk 0:00:17]} 25. h4 {[%clk 0:01:08]}  h5 {[%clk 0:00:17]} 26. Ra1 {[%clk 0:01:08]}  Ng6 {[%clk 0:00:07]} 27. Ra8 {[%clk 0:01:08]}  f5 {[%clk 0:00:08]} 28. Nf3 {[%clk 0:00:51]}  fxe4 {[%clk 0:00:08]} 29. Ng5+ {[%clk 0:00:51]}  Kf6 {[%clk 0:00:09]} 30. b3 {[%clk 0:00:35]}  Bf5 {[%clk 0:00:03]} 31. Kc3 {[%clk 0:00:34]}  e3 {[%clk 0:00:03]} 32. fxe3 {[%clk 0:00:30]}  Bg4 {[%clk 0:00:04]} 33. e4 {[%clk 0:00:26]}  Bd1 {[%clk 0:00:03]} 34. b4 {[%clk 0:00:26]}  Be2 {[%clk 0:00:03]} 35. Re8 {[%clk 0:00:21]}  Bg4 {[%clk 0:00:03]} 36. Kb2 {[%clk 0:00:14]}  Be2 {[%clk 0:00:03]} 37. Re6# {[%clk 0:00:13]} 1-0

[Event "December 12 Early 2023"]
[Site "https://www.chess.com"]
[Date "2023.12.12"]
[Round "6"]
[White "Volkov, Maksim"]
[Black "Finek, Vaclav"]
[Result "0-1"]
[Board "28"]
[TimeControl "180+1"]
[WhiteFideId "54123070"]
[BlackFideId "23718293"]
[WhiteElo "2695"]
[BlackElo "2846"]
[WhiteTeam "RUS"]
[BlackTeam "CZE"]
[WhiteClock "0:00:16"]
[BlackClock "0:00:12"]

1. d4 {[%clk 0:03:00]}  d5 {[%clk 0:02:58]} 2. c4 {[%clk 0:03:01]}  c6 {[%clk 0:02:57]} 3. Nf3 {[%clk 0:03:01]}  Nf6 {[%clk 0:02:56]} 4. e3 {[%clk 0:03:01]}  e6 {[%clk 0:02:53]} 5. Bd3 {[%clk 0:02:59]}  Nbd7 {[%clk 0:02:52]} 6. O-O {[%clk 0:02:57]}  Bd6 {[%clk 0:02:52]} 7. Nbd2 {[%clk 0:02:57]}  O-O {[%clk 0:02:51]} 8. e4 {[%clk 0:02:58]}  dxe4 {[%clk 0:02:51]} 9. Nxe4 {[%clk 0:02:59]}  Nxe4 {[%clk 0:02:51]} 10. Bxe4 {[%clk 0:03:00]}  c5 {[%clk 0:02:50]} 11. dxc5 {[%clk 0:02:41]}  Nxc5 {[%clk 0:02:50]} 12. Bc2 {[%clk 0:02:16]}  a5 {[%clk 0:02:29]} 13. Be3 {[%clk 0:02:04]}  Qc7 {[%clk 0:02:18]} 14. Qd4 {[%clk 0:01:50]}  e5 {[%clk 0:02:10]} 15. Nxe5 {[%clk 0:01:31]}  Bxe5 {[%clk 0:01:50]} 16. Qxc5 {[%clk 0:01:30]}  Bxh2+ {[%clk 0:01:49]} 17. Kh1 {[%clk 0:01:31]}  Bd6 {[%clk 0:01:49]} 18. Qxc7 {[%clk 0:01:15]}  Bxc7 {[%clk 0:01:49]} 19. Be4 {[%clk 0:01:15]}  Be6 {[%clk 0:01:22]} 20. c5 {[%clk 0:01:11]}  Rab8 {[%clk 0:01:19]} 21. Rfd1 {[%clk 0:01:04]}  b6 {[%clk 0:01:14]} 22. c6 {[%clk 0:01:05]}  Rbd8 {[%clk 0:01:14]} 23. b3 {[%clk 0:00:59]}  f5 {[%clk 0:01:09]} 24. Bf3 {[%clk 0:00:55]}  Kf7 {[%clk 0:01:07]} 25. Bg5 {[%clk 0:00:51]}  Rc8 {[%clk 0:00:58]} 26. Rac1 {[%clk 0:00:45]}  h6 {[%clk 0:00:55]} 27. Be3 {[%clk 0:00:40]}  Rfd8 {[%clk 0:00:49]} 28. Bh5+ {[%clk 0:00:36]}  g6 {[%clk 0:00:47]} 29. Be2 {[%clk 0:00:35]}  g5 {[%clk 0:00:45]} 30. g3 {[%clk 0:00:27]}  Rxd1+ {[%clk 0:00:37]} 31. Rxd1 {[%clk 0:00:27]}  Rd8 {[%clk 0:00:37]} 32. Rc1 {[%clk 0:00:25]}  f4 {[%clk 0:00:32]} 33. gxf4 {[%clk 0:00:19]}  gxf4 {[%clk 0:00:33]} 34. Bh5+ {[%clk 0:00:14]}  Kf6 {[%clk 0:00:32]} 35. Bxb6 {[%clk 0:00:11]}  Bxb6 {[%clk 0:00:32]} 36. c7 {[%clk 0:00:12]}  Rc8 {[%clk 0:00:32]} 37. Rc6 {[%clk 0:00:13]}  Rxc7 {[%clk 0:00:08]} 38. Rxb6 {[%clk 0:00:13]}  Ke5 {[%clk 0:00:07]} 39. Kg2 {[%clk 0:00:10]}  Bd5+ {[%clk 0:00:07]} 40. Bf3 {[%clk 0:00:10]}  Rg7+ {[%clk 0:00:07]} 41. Kh3 {[%clk 0:00:04]}  Bxf3 {[%clk 0:00:07]} 42. Rb5+ {[%clk 0:00:04]}  Ke4 {[%clk 0:00:07]} 43. Rxa5 {[%clk 0:00:05]}  Rg5 {[%clk 0:00:07]} 44. Ra4+ {[%clk 0:00:05]}  Ke5 {[%clk 0:00:04]} 45. Ra5+ {[%clk 0:00:05]}  Kf6 {[%clk 0:00:03]} 46. Rxg5 {[%clk 0:00:02]}  hxg5 {[%clk 0:00:03]} 47. a4 {[%clk 0:00:02]}  Ke5 {[%clk 0:00:03]} 48. a5 {[%clk 0:00:02]}  Kd5 {[%clk 0:00:04]} 49. b4 {[%clk 0:00:03]}  Kc6 {[%clk 0:00:04]} 50. Kh2 {[%clk 0:00:03]}  Kb5 {[%clk 0:00:04]} 51. Kh3 {[%clk 0:00:03]}  Kxb4 {[%clk 0:00:04]} 52. a6 {[%clk 0:00:03]}  Kb5 {[%clk 0:00:04]} 53. a7 {[%clk 0:00:04]}  Kb6 {[%clk 0:00:04]} 54. a8=Q {[%clk 0:00:05]}  Bxa8 {[%clk 0:00:05]} 55. Kg4 {[%clk 0:00:06]}  f3 {[%clk 0:00:06]} 56. Kxg5 {[%clk 0:00:06]}  Kc5 {[%clk 0:00:06]} 57. Kf4 {[%clk 0:00:07]}  Kd4 {[%clk 0:00:07]} 58. Kg3 {[%clk 0:00:08]}  Kd3 {[%clk 0:00:08]} 59. Kh2 {[%clk 0:00:08]}  Ke2 {[%clk 0:00:09]} 60. Kh1 {[%clk 0:00:09]}  Kxf2 {[%clk 0:00:09]} 61. Kh2 {[%clk 0:00:10]}  Bb7 {[%clk 0:00:10]} 62. Kh1 {[%clk 0:00:11]}  Ba6 {[%clk 0:00:11]} 63. Kh2 {[%clk 0:00:12]}  Ke3 {[%clk 0:00:11]} 64. Kh1 {[%clk 0:00:12]}  f2 {[%clk 0:00:12]} 65. Kh2 {[%clk 0:00:13]}  f1=Q {[%clk 0:00:12]} 66. Kg3 {[%clk 0:00:14]}  Qf3+ {[%clk 0:00:13]} 67. Kh4 {[%clk 0:00:15]}  Qg2 {[%clk 0:00:12]} 68. Kh5 {[%clk 0:00:16]}  Bd3 {[%clk 0:00:13]} 69. Kh6 {[%clk 0:00:16]}  Qg6# {[%clk 0:00:12]} 0-1

[Event "December 12 Early 2023"]
[Site "https://www.chess.com"]
[Date "2023.12.12"]
[Round "6"]
[White "Klymchuk, Andriy"]
[Black "Golubev, Mikhail"]
[Result "1-0"]
[Board "30"]
[TimeControl "180+1"]
[WhiteFideId "14140063"]
[BlackFideId "14100983"]
[WhiteElo "2839"]
[BlackElo "2657"]
[WhiteTeam "UKR"]
[BlackTeam "UKR"]
[WhiteClock "0:00:27"]
[BlackClock "0:00:00"]

1. e4 {[%clk 0:03:00]}  c5 {[%clk 0:02:59]} 2. Nf3 {[%clk 0:03:00]}  d6 {[%clk 0:02:59]} 3. d4 {[%clk 0:03:00]}  Nf6 {[%clk 0:02:58]} 4. Nc3 {[%clk 0:02:59]}  cxd4 {[%clk 0:02:58]} 5. Nxd4 {[%clk 0:03:00]}  g6 {[%clk 0:02:58]} 6. Be3 {[%clk 0:02:59]}  Bg7 {[%clk 0:02:58]} 7. f3 {[%clk 0:02:59]}  Nc6 {[%clk 0:02:59]} 8. Bc4 {[%clk 0:02:58]}  O-O {[%clk 0:02:58]} 9. Qd2 {[%clk 0:02:57]}  Bd7 {[%clk 0:02:57]} 10. Bb3 {[%clk 0:02:57]}  Ne5 {[%clk 0:02:48]} 11. h4 {[%clk 0:02:57]}  Rc8 {[%clk 0:02:47]} 12. h5 {[%clk 0:02:53]}  Nxh5 {[%clk 0:02:46]} 13. g4 {[%clk 0:02:52]}  Nf6 {[%clk 0:02:45]} 14. Bh6 {[%clk 0:02:50]}  Bxh6 {[%clk 0:02:43]} 15. Qxh6 {[%clk 0:02:49]}  Rxc3 {[%clk 0:02:42]} 16. bxc3 {[%clk 0:02:49]}  Qa5 {[%clk 0:02:42]} 17. g5 {[%clk 0:02:09]}  Qxc3+ {[%clk 0:02:35]} 18. Ke2 {[%clk 0:02:09]}  Nh5 {[%clk 0:02:10]} 19. Rxh5 {[%clk 0:01:45]}  gxh5 {[%clk 0:02:09]} 20. Rd1 {[%clk 0:01:44]}  Bg4 {[%clk 0:01:16]} 21. fxg4 {[%clk 0:01:37]}  Nxg4 {[%clk 0:01:15]} 22. Rd3 {[%clk 0:01:26]}  Qxd3+ {[%clk 0:01:11]} 23. cxd3 {[%clk 0:01:27]}  Nxh6 {[%clk 0:01:11]} 24. gxh6 {[%clk 0:01:27]}  e6 {[%clk 0:01:08]} 25. Nb5 {[%clk 0:01:25]}  h4 {[%clk 0:00:52]} 26. Kf3 {[%clk 0:01:24]}  Rd8 {[%clk 0:00:43]} 27. Nxa7 {[%clk 0:01:23]}  Kf8 {[%clk 0:00:38]} 28. Kg4 {[%clk 0:01:23]}  Ke7 {[%clk 0:00:38]} 29. Kxh4 {[%clk 0:01:22]}  Rg8 {[%clk 0:00:37]} 30. Kh5 {[%clk 0:01:20]}  f6 {[%clk 0:00:35]} 31. a4 {[%clk 0:01:17]}  Rg5+ {[%clk 0:00:35]} 32. Kh4 {[%clk 0:01:17]}  Rg6 {[%clk 0:00:34]} 33. Kh5 {[%clk 0:01:15]}  Rg5+ {[%clk 0:00:35]} 34. Kh4 {[%clk 0:01:15]}  Rg6 {[%clk 0:00:35]} 35. Nb5 {[%clk 0:01:15]}  Rxh6+ {[%clk 0:00:35]} 36. Kg4 {[%clk 0:01:15]}  Rg6+ {[%clk 0:00:35]} 37. Kh5 {[%clk 0:01:15]}  Rg3 {[%clk 0:00:35]} 38. Bc4 {[%clk 0:01:11]}  d5 {[%clk 0:00:29]} 39. exd5 {[%clk 0:01:11]}  exd5 {[%clk 0:00:29]} 40. Kh4 {[%clk 0:01:04]}  Rg5 {[%clk 0:00:21]} 41. Bb3 {[%clk 0:01:03]}  Kd7 {[%clk 0:00:20]} 42. Nd4 {[%clk 0:00:56]}  Kd6 {[%clk 0:00:19]} 43. Nf3 {[%clk 0:00:41]}  Rg7 {[%clk 0:00:19]} 44. d4 {[%clk 0:00:40]}  Rc7 {[%clk 0:00:19]} 45. Kg3 {[%clk 0:00:39]}  Rc3 {[%clk 0:00:19]} 46. Bd1 {[%clk 0:00:39]}  Ra3 {[%clk 0:00:16]} 47. Kf4 {[%clk 0:00:38]}  Ke6 {[%clk 0:00:14]} 48. Nh4 {[%clk 0:00:38]}  Rd3 {[%clk 0:00:12]} 49. Bg4+ {[%clk 0:00:38]}  Kf7 {[%clk 0:00:11]} 50. Nf5 {[%clk 0:00:38]}  Ra3 {[%clk 0:00:11]} 51. Bd1 {[%clk 0:00:37]}  Ke6 {[%clk 0:00:09]} 52. Ng7+ {[%clk 0:00:37]}  Kf7 {[%clk 0:00:09]} 53. Nf5 {[%clk 0:00:38]}  Ke6 {[%clk 0:00:10]} 54. Bc2 {[%clk 0:00:37]}  Ra2 {[%clk 0:00:09]} 55. Bb3 {[%clk 0:00:36]}  Ra3 {[%clk 0:00:09]} 56. Bd1 {[%clk 0:00:34]}  Ra1 {[%clk 0:00:09]} 57. Ne3 {[%clk 0:00:34]}  Ra3 {[%clk 0:00:07]} 58. Bg4+ {[%clk 0:00:32]}  Kd6 {[%clk 0:00:06]} 59. Bd1 {[%clk 0:00:31]}  Rd3 {[%clk 0:00:05]} 60. Bc2 {[%clk 0:00:31]}  Rxd4+ {[%clk 0:00:05]} 61. Kf3 {[%clk 0:00:29]}  Ke5 {[%clk 0:00:05]} 62. Bxh7 {[%clk 0:00:28]}  Rxa4 {[%clk 0:00:00]} 63. Ng4+ {[%clk 0:00:27]} 1-0

[Event "December 12 Early 2023"]
[Site "https://www.chess.com"]
[Date "2023.12.12"]
[Round "6"]
[White "Nguyen, Ngoc Truong Son"]
[Black "Lund, Gunnar"]
[Result "1-0"]
[Board "32"]
[TimeControl "180+1"]
[WhiteFideId "12401110"]
[BlackFideId "1520814"]
[WhiteElo "2941"]
[BlackElo "2625"]
[WhiteTeam "VIE"]
[BlackTeam "NOR"]
[WhiteClock "0:01:03"]
[BlackClock "0:00:48"]

1. d4 {[%clk 0:02:57]}  d6 {[%clk 0:02:38]} 2. e4 {[%clk 0:02:56]}  Nf6 {[%clk 0:02:37]} 3. Nc3 {[%clk 0:02:57]}  e5 {[%clk 0:02:38]} 4. dxe5 {[%clk 0:02:57]}  dxe5 {[%clk 0:02:39]} 5. Qxd8+ {[%clk 0:02:58]}  Kxd8 {[%clk 0:02:40]} 6. Bc4 {[%clk 0:02:59]}  Be6 {[%clk 0:02:40]} 7. Bxe6 {[%clk 0:02:59]}  fxe6 {[%clk 0:02:41]} 8. Be3 {[%clk 0:02:59]}  Bd6 {[%clk 0:02:42]} 9. f3 {[%clk 0:03:00]}  Ke7 {[%clk 0:02:42]} 10. Nge2 {[%clk 0:03:01]}  Nbd7 {[%clk 0:02:41]} 11. O-O-O {[%clk 0:02:59]}  a6 {[%clk 0:02:41]} 12. b3 {[%clk 0:02:43]}  b5 {[%clk 0:02:38]} 13. Kb2 {[%clk 0:02:43]}  Rhb8 {[%clk 0:02:38]} 14. h4 {[%clk 0:02:36]}  Nc5 {[%clk 0:02:32]} 15. h5 {[%clk 0:02:24]}  a5 {[%clk 0:02:32]} 16. g4 {[%clk 0:02:16]}  a4 {[%clk 0:02:31]} 17. g5 {[%clk 0:02:12]}  Nfd7 {[%clk 0:02:31]} 18. g6 {[%clk 0:02:06]}  h6 {[%clk 0:02:30]} 19. Rhf1 {[%clk 0:01:47]}  Ra6 {[%clk 0:02:02]} 20. b4 {[%clk 0:01:27]}  a3+ {[%clk 0:02:00]} 21. Kc1 {[%clk 0:01:27]}  Na4 {[%clk 0:01:46]} 22. Nxa4 {[%clk 0:01:27]}  Rxa4 {[%clk 0:01:47]} 23. c3 {[%clk 0:01:27]}  c5 {[%clk 0:01:48]} 24. f4 {[%clk 0:01:27]}  cxb4 {[%clk 0:01:45]} 25. f5 {[%clk 0:01:19]}  exf5 {[%clk 0:01:26]} 26. Ng3 {[%clk 0:01:17]}  Bc7 {[%clk 0:00:51]} 27. Nxf5+ {[%clk 0:01:18]}  Kf8 {[%clk 0:00:52]} 28. Rxd7 {[%clk 0:01:16]}  Ba5 {[%clk 0:00:50]} 29. Rf7+ {[%clk 0:01:04]}  Ke8 {[%clk 0:00:48]} 30. Nxg7+ {[%clk 0:01:03]} 1-0

[Event "December 12 Early 2023"]
[Site "https://www.chess.com"]
[Date "2023.12.12"]
[Round "6"]
[White "Sychev, Klementy"]
[Black "Srihari L R"]
[Result "1-0"]
[Board "33"]
[TimeControl "180+1"]
[WhiteFideId "4114060"]
[BlackFideId "46617116"]
[WhiteElo "2930"]
[BlackElo "2742"]
[WhiteTeam "FID"]
[BlackTeam "IND"]
[WhiteClock "0:00:57"]
[BlackClock "0:00:00"]

1. e4 {[%clk 0:03:00]}  c6 {[%clk 0:02:55]} 2. c4 {[%clk 0:03:00]}  d5 {[%clk 0:02:54]} 3. cxd5 {[%clk 0:03:01]}  cxd5 {[%clk 0:02:54]} 4. exd5 {[%clk 0:03:02]}  Nf6 {[%clk 0:02:54]} 5. Qa4+ {[%clk 0:03:02]}  Nbd7 {[%clk 0:02:53]} 6. Nc3 {[%clk 0:03:02]}  g6 {[%clk 0:02:53]} 7. Bc4 {[%clk 0:03:02]}  Bg7 {[%clk 0:02:53]} 8. d3 {[%clk 0:03:02]}  O-O {[%clk 0:02:54]} 9. Nf3 {[%clk 0:03:02]}  a6 {[%clk 0:02:54]} 10. Qa3 {[%clk 0:03:03]}  Rb8 {[%clk 0:02:54]} 11. Bf4 {[%clk 0:03:02]}  Ra8 {[%clk 0:02:50]} 12. O-O {[%clk 0:03:02]}  b6 {[%clk 0:02:37]} 13. Rfe1 {[%clk 0:03:01]}  Re8 {[%clk 0:02:36]} 14. Bb5 {[%clk 0:02:40]}  Bb7 {[%clk 0:02:29]} 15. Bc6 {[%clk 0:02:40]}  Qc8 {[%clk 0:02:18]} 16. Nd4 {[%clk 0:02:35]}  Bf8 {[%clk 0:02:04]} 17. b4 {[%clk 0:02:22]}  e5 {[%clk 0:01:31]} 18. dxe6 {[%clk 0:02:19]}  Bxc6 {[%clk 0:01:31]} 19. Qb3 {[%clk 0:02:02]}  fxe6 {[%clk 0:01:17]} 20. Rxe6 {[%clk 0:02:02]}  Rxe6 {[%clk 0:00:55]} 21. Qxe6+ {[%clk 0:02:01]}  Kg7 {[%clk 0:00:55]} 22. Nxc6 {[%clk 0:01:59]}  Qe8 {[%clk 0:00:52]} 23. Qb3 {[%clk 0:01:46]}  Rc8 {[%clk 0:00:45]} 24. Nd4 {[%clk 0:01:46]}  Kh8 {[%clk 0:00:33]} 25. Bd2 {[%clk 0:01:33]}  a5 {[%clk 0:00:28]} 26. Re1 {[%clk 0:01:32]}  Qd8 {[%clk 0:00:16]} 27. Ne6 {[%clk 0:01:32]}  Qe7 {[%clk 0:00:16]} 28. Ng5 {[%clk 0:01:31]}  Qxb4 {[%clk 0:00:13]} 29. Qf7 {[%clk 0:01:25]}  Qb2 {[%clk 0:00:12]} 30. Nce4 {[%clk 0:01:18]}  Bg7 {[%clk 0:00:09]} 31. Bc3 {[%clk 0:00:59]}  Rxc3 {[%clk 0:00:00]} 32. Nxf6 {[%clk 0:00:57]} 1-0